Cogmind - Beta 13 @@@ ROGUE MODE // 2024.05.14 @ 00:43:47 Player: CrossedViper Result: Destroyed by P-80 Master with Gamma Rifle Performance ------------- Evolutions (7) 3500 Regions Visited (20) 4000 Robots Destroyed (142) 710 Value Destroyed (3520) 3520 Prototype IDs (47) 940 Alien Tech Used (0) 0 Bonus (962) 962 TOTAL SCORE: 13632 Bonus ------- High Alert Combat Kills 31 Follower Combat Kills 261 Entered Garrisons 200 Aligned with FarCom 300 Met Data Miner 300 Friendly Fire -130 Cogmind --------- Core Integrity 0/1300 Matter 294/300 Energy 100/100 System Corruption 7% Temperature Cool (0) Movement Core (50) Location -3/Quarantine Parts ------- > --- POWER (1) -------- (None) > --- PROPULSION (7) --- (None) > --- UTILITY (11) ----- Advanced Signal Interpreter Experimental Melee Analysis Suite Hacking Suite System Mapper System Shield Authchip [Weapon] Authchip [Weapon] > --- WEAPON (2) ------- (None) > --- INVENTORY (5) ---- Authchip [Armor] Authchip [Weapon] Core Reset Matrix Sigix Broadsword Peak State ------------ > --- POWER ------------ Micro Antimatter Reactor > --- PROPULSION ------- Combat Gravmag System Antigrav Array Antigrav Array Antigrav Array > --- UTILITY ---------- Medium Storage Unit Advanced Signal Interpreter Advanced Powered Armor Advanced Powered Armor Hacking Suite Advanced Hacking Suite Advanced Hacking Suite System Mapper Authchip [Processor] Authchip [Weapon] > --- WEAPON ----------- Variable Charge Gun > --- INVENTORY -------- Experimental Melee Analysis Suite Authchip [Device] Authchip [Device] Authchip [Armor] Authchip [Armor] Authchip [Weapon] Authchip [Weapon] Authchip [Weapon] [Rating: 125] Favorites ----------- Power Light Deuterium Engine Engine Light Deuterium Engine Power Core Fission Core Reactor Micro Antimatter Reactor Propulsion Improved VTOL Module Treads Light Treads Wheel Wheel Hover Unit Antigrav Array Flight Unit Improved VTOL Module Utility Hacking Suite Device Structural Scanner Storage Medium Storage Unit Processor Improved Signal Interpreter Hackware Hacking Suite Protection Experimental Utility Shielding Weapon Power Sword Energy Gun Medium Laser Energy Cannon Guided Plasma Cannon Ballistic Gun Assault Rifle Launcher Improved Grenade Launcher Slashing Weapon Power Sword Special Melee Weapon Improved Datajack Build | -11 -10 -10 -10 -9 -8 -8 -7 -7 -7 -6 -6 -6 -6 -5 -5 -4 -4 -4 -3 -3 ------- Run | Yrd Mat Min Exi Min Mat Gar Fac Was Fac Fac Low Low Dat Pro Fac Fac Was Fac Res Qua Slots Evolved 14 | . . . . . 4 . 2 . . 2 . . . . 2 2 . . 2 . Power . | . . . . . . . . . . . . . . . . . . . . . Propulsion 5 | . . . . . 2 . . . . 1 . . . . . . . . 2 . Utility 9 | . . . . . 2 . 2 . . 1 . . . . 2 2 . . . . Weapon . | . . . . . . . . . . . . . . . . . . . . . Parts Attached 213 | 6 4 10 4 . 16 5 24 . 36 17 . 3 . 4 20 23 . 10 15 16 Power 16 | 1 . . 1 . 1 . 6 . . 1 . . . . 1 1 . 2 . 2 Engine 11 | 1 . . 1 . 1 . 5 . . 1 . . . . . . . 1 . 1 Core 4 | . . . . . . . 1 . . . . . . . 1 1 . 1 . . Reactor 1 | . . . . . . . . . . . . . . . . . . . . 1 Propulsion 49 | 2 1 2 1 . 9 . 10 . 6 1 . . . . 3 3 . 2 2 7 Treads 17 | 2 . 2 1 . 8 . 4 . . . . . . . . . . . . . Leg . | . . . . . . . . . . . . . . . . . . . . . Wheel 3 | . 1 . . . . . 2 . . . . . . . . . . . . . Hover 6 | . . . . . . . . . . . . . . . . . . . . 6 Flight 23 | . . . . . 1 . 4 . 6 1 . . . . 3 3 . 2 2 1 Utility 74 | 1 3 2 1 . 2 . 6 . 16 8 . . . 4 9 9 . 1 6 6 Device 30 | . 1 2 . . 1 . 3 . 11 2 . . . 4 2 3 . . 1 . Storage 6 | 1 2 . 1 . . . 1 . 1 . . . . . . . . . . . Processor 10 | . . . . . 1 . 2 . 1 2 . . . . . 3 . . . 1 Hackware 20 | . . . . . . . . . 3 3 . . . . 5 . . 1 5 3 Protection 8 | . . . . . . . . . . 1 . . . . 2 3 . . . 2 Artifact . | . . . . . . . . . . . . . . . . . . . . . Weapon 74 | 2 . 6 1 . 4 5 2 . 14 7 . 3 . . 7 10 . 5 7 1 Energy Gun 7 | 1 . 1 . . 4 . . . . . . . . . . . . . . 1 Energy Cannon 27 | . . . . . . 2 2 . 6 3 . 3 . . 4 2 . 1 4 . Ballistic Gun 2 | 1 . . 1 . . . . . . . . . . . . . . . . . Ballistic Cannon . | . . . . . . . . . . . . . . . . . . . . . Launcher 4 | . . . . . . 2 . . . . . . . . . 2 . . . . Special Weapon . | . . . . . . . . . . . . . . . . . . . . . Impact Weapon . | . . . . . . . . . . . . . . . . . . . . . Slashing Weapon 16 | . . 3 . . . 1 . . 2 4 . . . . 1 1 . 1 3 . Piercing Weapon . | . . . . . . . . . . . . . . . . . . . . . Special Melee Weapon 18 | . . 2 . . . . . . 6 . . . . . 2 5 . 3 . . Unidentified Prototypes 7 | . . . . . 3 . 1 . 1 . . . . . 1 1 . . . . Parts Lost 38 | . . 1 . . 2 2 . . 1 1 1 . . . 1 1 2 2 10 14 Power 5 | . . . . . . . . . . . . . . . 1 . . 1 1 2 Propulsion 15 | . . 1 . . 2 1 . . 1 . . . . . . . 2 . 4 4 Utility 13 | . . . . . . 1 . . . 1 . . . . . . . . 3 8 Weapon 5 | . . . . . . . . . . . 1 . . . . 1 . 1 2 . Highest Loss Streak 12 | . . 1 . . 1 1 . . 1 1 1 . . . 1 1 2 2 6 12 To Critical Strikes 1 | . . . . . . 1 . . . . . . . . . . . . . . Average Slot Usage (%) 94 | . 99 99 100 100 91 83 86 92 96 98 99 93 93 93 92 97 94 94 85 62 Engine 7 | . 14 14 14 14 9 9 6 7 7 5 6 6 6 6 . . . . . . Core 1 | . . . . . . . . . . . . . . . 4 4 3 3 3 . Treads 11 | . 27 28 28 28 35 25 12 . . . . . . . . . . . . . Flight 15 | . . . . . . . 6 30 29 33 33 33 33 33 29 25 22 23 26 3 Device 10 | . 13 13 14 14 10 15 15 23 14 5 6 6 6 6 4 5 5 5 4 1 Storage 8 | . 14 14 14 14 9 9 7 7 7 6 6 6 6 6 5 5 5 5 4 3 Processor 7 | . . . . . 9 9 17 15 13 12 13 13 13 13 6 9 10 6 4 5 Hackware 12 | . . . . . . . . . 8 18 20 20 20 20 31 31 31 34 30 26 Protection 1 | . . . . . . . . . . . . . . . 1 4 5 5 3 2 Energy Gun 5 | . 14 14 19 14 14 1 . . . . . . . . . . . . . . Ballistic Gun 2 | . 14 2 8 14 3 . . . . . . . . . . . . . . . Slashing Weapon 5 | . . 10 . . . 6 7 7 6 5 6 6 6 6 4 5 5 4 1 . Special Melee Weapon 1 | . . . . . . . . . 4 6 5 . . . . 3 5 3 2 . Naked Turns . | . . . . . . . . . . . . . . . . . . . . . Heaviest Build 64 | 12 28 31 53 53 53 59 64 20 28 21 20 19 19 19 34 27 26 21 27 53 Greatest Support 104 | 40 40 40 40 40 80 60 104 20 20 25 25 25 25 25 28 30 36 32 46 92 Greatest Overweight (x) 6 | . 2 . 1 1 . 1 6 . 1 . . . . . 1 . . 1 . 3 Average Overweight (x) . | . . . . 1 . . . . . . . . . . . . . . . . Largest Inventory Capacity 20 | 8 15 15 20 20 20 20 20 10 10 10 10 10 10 10 10 10 10 10 10 10 Average Capacity 12 | 7 11 15 17 20 20 20 17 10 10 10 10 10 10 10 10 10 10 10 10 9 Most Carried 20 | 2 14 15 20 19 20 20 20 10 10 10 10 10 10 10 10 10 10 10 10 10 Average Carried 12 | 1 7 14 16 19 18 18 16 10 9 9 10 9 8 9 9 9 10 9 9 8 Final Capacity 20 | 8 15 15 20 20 20 20 10 10 10 10 10 10 10 10 10 10 10 10 10 5 Final Carried 19 | 2 14 14 19 19 19 18 10 10 10 10 10 10 9 10 10 10 10 10 10 5 Class Distribution -------------------- 29% | Mutant 13% | Scavenger-Scout 12% | Wizard-Sprinter 10% | Hacker-Scout 9% | Wizard-Scout 6% | Scavenger-Assassin 4% | Scavenger-Skirmisher 4% | Hacker-Mutant Dominant Class ---------------- Mutant | -10/Materials Mutant | -10/Mines Mutant | -10/Exiles Mutant | -9/Mines Scavenger-Skirmisher | -8/Materials Scavenger-Assassin | -8/Garrison Scavenger-Assassin | -7/Factory Scavenger-Scout | -7/Waste Scavenger-Scout | -7/Factory Hacker-Scout | -6/Factory Hacker-Scout | -6/Lower Caves Hacker-Scout | -6/Lower Caves Hacker-Scout | -6/Data Miner Hacker-Scout | -5/Proximity Caves Wizard-Sprinter | -5/Factory Wizard-Scout | -4/Factory Wizard-Scout | -4/Waste Wizard-Sprinter | -4/Factory Wizard-Sprinter | -3/Research Hacker-Mutant | -3/Quarantine Resources | -11 -10 -10 -10 -9 -8 -8 -7 -7 -7 -6 -6 -6 -6 -5 -5 -4 -4 -4 -3 -3 ----------- Run | Yrd Mat Min Exi Min Mat Gar Fac Was Fac Fac Low Low Dat Pro Fac Fac Was Fac Res Qua Matter Collected 3567 | 229 162 123 . . 305 184 281 . 325 245 . 46 . 77 76 314 . 405 614 181 Remotely . | . . . . . . . . . . . . . . . . . . . . . Salvage Created 5296 | 12 233 388 . . 671 378 490 . 898 443 . 22 29 . 122 530 . 393 687 . Parts 292 | 3 21 22 . . 38 15 16 . 45 17 . 1 2 . 12 37 . 22 41 . Haulers Intercepted 10 | . 1 . . . 4 . 1 . 1 2 . . . . . 1 . . . . Recyclers Shooed 6 | . 2 . . . 1 . . . 3 . . . . . . . . . . . Parts Field Recycled . | . . . . . . . . . . . . . . . . . . . . . Retrieved Matter . | . . . . . . . . . . . . . . . . . . . . . Parts Self-Destructed 5 | . . . . . . . . . . . 1 4 . . . . . . . . Prevented . | . . . . . . . . . . . . . . . . . . . . . Kills | -11 -10 -10 -10 -9 -8 -8 -7 -7 -7 -6 -6 -6 -6 -5 -5 -4 -4 -4 -3 -3 ------- Run | Yrd Mat Min Exi Min Mat Gar Fac Was Fac Fac Low Low Dat Pro Fac Fac Was Fac Res Qua Combat Hostiles Destroyed 61 | . 5 12 . . 10 14 3 . 4 2 . . . . 4 4 . 1 2 . Melee 11 | . . 9 . . 1 . . . . . . . . . . 1 . . . . Guns 17 | . 5 3 . . 9 . . . . . . . . . . . . . . . Cannons 13 | . . . . . . 1 3 . 4 1 . . . . . 1 . 1 2 . AOE 18 | . . . . . . 12 . . . 1 . . . . 4 1 . . . . Classes Destroyed 17 | 1 6 1 . . 3 2 1 . 2 . . 1 . . . . . . . . Worker 18 | 1 . 1 . . 1 . 1 . . 2 . . . . 1 1 . 4 6 . Builder 8 | . 1 . . . 2 . . . 1 . . . . . . 1 . . 3 . Tunneler 6 | . 1 . . . . . . . 1 . . . . . . 1 . 3 . . Hauler 10 | . 1 . . . 4 . 1 . 1 2 . . . . . 1 . . . . Recycler 12 | . . . . . . . 2 . 6 . . . . . . . . 1 3 . Minesweeper 1 | . . . . . . . . . . . . 1 . . . . . . . . Mechanic 5 | . 1 . . . . . 1 . 1 1 . . . . . 1 . . . . Operator 8 | . . . . . . . . . 5 1 . . . . 2 . . . . . Watcher 14 | . . . . . 1 . 1 . 1 3 . . . . 1 4 . 1 2 . Swarmer 18 | . 3 3 . . 3 4 . . . . . . . . 4 1 . . . . Grunt 22 | . 2 7 . . 5 6 . . . 2 . . . . . . . . . . Brawler 3 | . . . . . . 3 . . . . . . . . . . . . . . Duelist 1 | . . . . . . 1 . . . . . . . . . . . . . . Sentry 5 | . . . . . 1 . 2 . . . . . . . . 1 . 1 . . Hunter 5 | . . . . . 1 . 1 . 1 . . . . . . 2 . . . . Programmer 5 | . . . . . . . . . 3 . . . . . . . . . 2 . Assembled 2 | . . 2 . . . . . . . . . . . . . . . . . . Best Kill Streak 7 | 1 2 5 . . 3 5 2 . 4 5 . 1 1 . 4 4 . 2 7 . Combat Bots Only 5 | . 2 5 . . 3 5 1 . 2 2 . . . . 4 2 . 1 1 . Max Kills in Single Turn 4 | 1 1 2 . . 2 2 1 . 1 3 . 1 1 . 4 3 . 1 1 . Gunslinging 1 | . . 1 . . . . . . . . . . . . . . . . . . Exploded 4 | . . . . . . 2 . . . 1 . . . . 4 1 . . . . Melee 1 | . . 1 . . 1 . . . . . . . . . . 1 . . . . Uniques/NPCs Destroyed 1 | . . . . . . . . . . . . . 1 . . . . . . . Data Miner (-6/Data Miner) Combat | -11 -10 -10 -10 -9 -8 -8 -7 -7 -7 -6 -6 -6 -6 -5 -5 -4 -4 -4 -3 -3 -------- Run | Yrd Mat Min Exi Min Mat Gar Fac Was Fac Fac Low Low Dat Pro Fac Fac Was Fac Res Qua Hostile Shots Fired 612 | . 12 27 . . 88 10 6 . 26 15 7 12 . . 21 37 1 24 93 233 Missed 268 | . 3 5 . . 30 1 3 . 16 7 4 4 . . 7 21 . 15 53 99 Damage Taken 7067 | . 87 281 . . 937 304 19 . 151 83 64 121 . . 342 273 54 198 1002 3151 Core 1901 | . 17 46 . . 112 66 . . 14 66 . 29 . . 163 69 18 . 383 918 Absorbed by Shields 13 | . . . . . . . . . . . . . . . . 13 . . . . Redirected to Shielding 265 | . . . . . . . . . . . . . . . 103 47 . . 115 . Regen/Repaired (Parts) 258 | . . . . . . . . . 67 23 . . . . . 103 . . . 65 Core Remaining (%) 86 | 100 . . . 74 . 67 . . 98 . . . . 88 83 . . 92 . . Volleys Fired 202 | 1 32 2 . . 58 28 18 . 12 9 . 10 . . 6 9 . 5 11 1 Largest 2 | 2 2 2 . . 2 1 1 . 1 1 . 1 . . 1 1 . 1 1 1 Hottest 225 | 70 70 125 . . 122 120 120 . 120 120 . 120 . . 120 120 . 120 120 225 Shots Fired 290 | 2 64 4 . . 112 28 18 . 12 9 . 9 . . 6 9 . 5 11 1 Gun 183 | 2 64 4 . . 112 . . . . . . . . . . . . . . 1 Cannon 89 | . . . . . . 13 18 . 12 9 . 9 . . 6 6 . 5 11 . Launcher 18 | . . . . . . 15 . . . . . . . . . 3 . . . . Special . | . . . . . . . . . . . . . . . . . . . . . Kinetic 68 | 1 32 . . . 35 . . . . . . . . . . . . . . . Thermal 204 | 1 32 4 . . 77 13 18 . 12 9 . 9 . . 6 6 . 5 11 1 Explosive 15 | . . . . . . 15 . . . . . . . . . . . . . . Electromagnetic 3 | . . . . . . . . . . . . . . . . 3 . . . . Robot Hit Streak 11 | 1 9 3 . . 11 4 2 . . 4 . 7 . . . . . . 9 . Robot Miss Streak 5 | 1 5 . . . 4 2 . . . . . . . . . . . . . . Penetration Max . | . . . . . . . . . . . . . . . . . . . . . Secondary Targets 2 | . . 1 . . 1 . . . . . . . . . . . . . . . Max Gunslinging Chain 1 | . . 1 . . 1 . . . . . . . . . . . . . . . Shots Hit Robots 262 | 1 42 25 . . 64 5 6 . 37 16 1 5 1 . 6 22 1 11 19 . Core Hits 164 | 1 14 14 . . 30 26 10 . 15 11 . 1 1 . 6 14 1 7 13 . Critical Kills . | . . . . . . . . . . . . . . . . . . . . . Critical Parts Destroyed . | . . . . . . . . . . . . . . . . . . . . . Critical Strikes 14 | . 2 1 . . 5 . . . . 3 . . . . . 2 . . 1 . Burn 7 | . 2 . . . 5 . . . . . . . . . . . . . . . Sever 7 | . . 1 . . . . . . . 3 . . . . . 2 . . 1 . Melee Attacks 297 | . . 28 . . . 5 5 . 69 34 2 3 22 1 18 50 1 31 28 . Impact . | . . . . . . . . . . . . . . . . . . . . . Slashing 288 | . . 28 . . . 5 5 . 66 34 2 3 22 1 18 45 1 30 28 . Piercing . | . . . . . . . . . . . . . . . . . . . . . Sneak Attacks 56 | . . 1 . . . . 4 . 15 2 . 1 1 . 2 9 . 9 12 . Combat Hostiles . | . . . . . . . . . . . . . . . . . . . . . Follow-up Attacks . | . . . . . . . . . . . . . . . . . . . . . Damage Inflicted 14741 | 12 534 808 . . 1268 1642 818 . 2152 1420 38 448 86 . 986 1823 30 931 1680 65 Guns 1825 | 12 521 49 . . 1243 . . . . . . . . . . . . . . . Cannons 2689 | . . . . . . 328 559 . 439 282 . 318 . . 72 179 . 172 340 . Explosions 2758 | . . . . . . 1314 . . . 411 . . . . 504 529 . . . . Melee 7361 | . . 759 . . . . 254 . 1713 727 38 130 86 . 410 1115 30 759 1340 . Ramming 108 | . 13 . . . 25 . 5 . . . . . . . . . . . . 65 Kinetic 477 | 12 255 . . . 210 . . . . . . . . . . . . . . . Thermal 4952 | . 266 49 . . 1033 328 559 . 439 693 . 318 . . 576 179 . 172 340 . Explosive 1696 | . . . . . . 1314 . . . . . . . . . 382 . . . . Electromagnetic 147 | . . . . . . . . . . . . . . . . 147 . . . . Impact . | . . . . . . . . . . . . . . . . . . . . . Slashing 7361 | . . 759 . . . . 254 . 1713 727 38 130 86 . 410 1115 30 759 1340 . Piercing . | . . . . . . . . . . . . . . . . . . . . . Highest Corruption 11 | . . . . . . 1 . 7 7 . . 2 2 2 . . 10 11 1 6 Average Corruption 4 | . . . . . . 1 . 7 2 . . 1 2 2 . . 10 10 1 2 Corruption Purged 9 | . . . . . . . . . 9 . . . . . . . . . . . Corruption Blocked 15 | . . . . . . . . . . . . . . . . . . . . 15 Effects 59 | . . . . . . 1 . 1 12 . . 1 2 5 . . 1 33 . 3 Message Errors 14 | . . . . . . . . 1 3 . . 1 . . . . . 9 . . Matter Fused 8 | . . . . . . . . . 1 . . . . 1 . . . 5 . 1 Heat Flow Errors 7 | . . . . . . . . . 2 . . . 1 . . . 1 3 . . Energy Discharges 10 | . . . . . . . . . 3 . . . . 2 . . . 5 . . Data Loss (minor) 7 | . . . . . . . . . 1 . . . . 2 . . . 4 . . Data Loss (major) 6 | . . . . . . 1 . . 1 . . . . . . . . 3 . 1 Alerts 6 | . . . . . . . . . 1 . . . 1 . . . . 3 . 1 Misdirections 1 | . . . . . . . . . . . . . . . . . . 1 . . Overload Shots 1 | . . . . . . . . . . . . . . . . . . . . 1 Overflow Damage 1510 | . . 19 . . . 2 70 . 453 129 . 55 . . 170 174 . 181 257 . Projectiles 49 | . . . . . . . 8 . . 4 . 5 . . 32 . . . . . Explosions 184 | . . . . . . 2 . . . 64 . . . . 118 . . . . . Melee 1277 | . . 19 . . . . 62 . 453 61 . 50 . . 20 174 . 181 257 . Knockbacks . | . . . . . . . . . . . . . . . . . . . . . Impact . | . . . . . . . . . . . . . . . . . . . . . Kinetic . | . . . . . . . . . . . . . . . . . . . . . Secondary . | . . . . . . . . . . . . . . . . . . . . . Self-Inflicted Damage 193 | . . . . . . 159 2 . . . . . . . . . . . . 32 Shots 4 | . . . . . . 4 . . . . . . . . . . . . . . Rammed 15 | . 3 . . . 4 . 1 . . . . . . . . . . . . 7 Targets Rammed 18 | . 3 . . . 7 . 1 . . . . . . . . . . . . 7 Kicked . | . . . . . . . . . . . . . . . . . . . . . Crushed 3 | . . . . . 3 . . . . . . . . . . . . . . . Highest Temperature 408 | 9 69 126 . . 370 336 330 . 268 330 . 408 90 . 120 270 125 370 290 70 Average Temperature 101 | 6 16 67 . . 122 104 130 . 116 149 . 132 54 . 44 128 60 152 77 52 Received Heat Transfer 1029 | . 24 141 . . 486 81 . . . 30 9 . . . 9 9 . 57 33 150 Effects 5 | . . . . . 1 . 3 . . . . 1 . . . . . . . . Energy Bleed 2 | . . . . . 1 . 1 . . . . . . . . . . . . . Interference 1 | . . . . . . . 1 . . . . . . . . . . . . . Matter Decay 1 | . . . . . . . . . . . . 1 . . . . . . . . Short Circuit 1 | . . . . . . . 1 . . . . . . . . . . . . . Siege Activations . | . . . . . . . . . . . . . . . . . . . . . Robots Corrupted 1 | . . . . . . . . . . . . . . . . 1 . . . . Combat Hostiles 1 | . . . . . . . . . . . . . . . . 1 . . . . Parts Fried 1 | . . . . . . . . . . . . . . . . 1 . . . . Impact Corruptions . | . . . . . . . . . . . . . . . . . . . . . Robots Melted 1 | . . . . . . 1 . . . . . . . . . . . . . . Combat Hostiles 1 | . . . . . . 1 . . . . . . . . . . . . . . Parts Melted 14 | . 3 . . . 3 . 1 . 4 1 . . . . . . . . 2 . Heat Transferred 9286 | . 925 111 . . 2220 680 1280 . 800 890 . 560 . . 460 400 . 400 560 . Parts Sabotaged . | . . . . . . . . . . . . . . . . . . . . . Parts Stolen . | . . . . . . . . . . . . . . . . . . . . . Parts Stripped . | . . . . . . . . . . . . . . . . . . . . . Power Chain Reactions . | . . . . . . . . . . . . . . . . . . . . . Alert | -11 -10 -10 -10 -9 -8 -8 -7 -7 -7 -6 -6 -6 -6 -5 -5 -4 -4 -4 -3 -3 ------- Run | Yrd Mat Min Exi Min Mat Gar Fac Was Fac Fac Low Low Dat Pro Fac Fac Was Fac Res Qua Peak Influence 580 | 5 182 198 . . 266 493 346 113 397 580 . . . . 473 319 80 294 298 274 Initial 258 | . 3 70 . . . 107 258 83 79 161 . . . . . . 50 42 23 90 Average 134 | . 68 42 . . 115 263 237 99 202 320 . . . . 55 88 59 127 148 100 Maximum Alert Level 2 | . . . . . 1 2 1 . 1 2 . . . . 2 1 . 1 1 1 Low Security (%) 75 | 100 100 100 . 100 90 44 31 100 61 17 . . . . 96 88 100 74 79 78 Level 1 22 | . . . . . 9 40 68 . 38 67 . . . . . 11 . 25 20 21 Level 2 2 | . . . . . . 14 . . . 14 . . . . 3 . . . . . Level 3 . | . . . . . . . . . . . . . . . . . . . . . Level 4 . | . . . . . . . . . . . . . . . . . . . . . Level 5 . | . . . . . . . . . . . . . . . . . . . . . High Security . | . . . . . . . . . . . . . . . . . . . . . Max Security . | . . . . . . . . . . . . . . . . . . . . . Squads Dispatched 47 | . 3 1 . 1 3 . . . 8 7 . . . . 3 13 . 3 5 . Investigation 30 | . 3 1 . 1 2 . . . 3 5 . . . . 2 6 . 3 4 . Extermination 5 | . . . . . . . . . 2 . . . . . . 3 . . . . Reinforcement 11 | . . . . . 1 . . . 2 2 . . . . 1 4 . . 1 . Assault . | . . . . . . . . . . . . . . . . . . . . . Garrison 1 | . . . . . . . . . 1 . . . . . . . . . . . Intercept . | . . . . . . . . . . . . . . . . . . . . . Searches Triggered . | . . . . . . . . . . . . . . . . . . . . . Construction Impeded 1 | . . . . . . . . . . . . . . . . 1 . . . . Haulers Reinforced 4 | . . . . . . . . . 1 2 . . . . . 1 . . . . Active Scanning Responses . | . . . . . . . . . . . . . . . . . . . . . Cargo Convoy Interrupts 2 | . . . . . . . . . 1 . . . . . . 1 . . . . Stealth | -11 -10 -10 -10 -9 -8 -8 -7 -7 -7 -6 -6 -6 -6 -5 -5 -4 -4 -4 -3 -3 --------- Run | Yrd Mat Min Exi Min Mat Gar Fac Was Fac Fac Low Low Dat Pro Fac Fac Was Fac Res Qua Distress Signals 15 | . 1 . . . . . . . 1 1 . . . . 2 5 . 2 2 1 Communications Jammed . | . . . . . . . . . . . . . . . . . . . . . Distress Signals . | . . . . . . . . . . . . . . . . . . . . . Times Spotted 274 | . 13 12 . . 21 12 4 6 28 25 9 2 4 . 13 32 4 27 37 25 Peak Tracking Total 21 | . 6 4 . . 5 4 1 6 4 7 11 1 2 . 4 8 5 12 21 11 Tactical Retreats 50 | . 1 . . . 1 . . . 6 10 . . . . 3 11 . 8 5 5 Traps | -11 -10 -10 -10 -9 -8 -8 -7 -7 -7 -6 -6 -6 -6 -5 -5 -4 -4 -4 -3 -3 ------- Run | Yrd Mat Min Exi Min Mat Gar Fac Was Fac Fac Low Low Dat Pro Fac Fac Was Fac Res Qua Traps Triggered 18 | . 1 . . . 1 . 5 . 3 3 . . . . . 4 . 1 . . Indirectly . | . . . . . . . . . . . . . . . . . . . . . Trap Hack Attempts 76 | . . 26 . . . . . . 38 . . . . . . 12 . . . . Triggered 2 | . . . . . . . . . 1 . . . . . . 1 . . . . Disarmed 1 | . . . . . . . . . . . . . . . . 1 . . . . Reprogrammed 15 | . . 4 . . . . . . 4 6 . . . . . 1 . . . . Reused 6 | . . . . . . . . . . 1 . . . . . 5 . . . . Traps Extracted 8 | . . 4 . . . . . . 4 . . . . . . . . . . . Installed 4 | . . . . . . . . . . . . . . . . 4 . . . . Triggered 14 | . . . . . . . . . 2 1 3 . . . . 8 . . . . Most Traps Carried 4 | . . 3 3 3 3 3 3 3 4 4 4 4 4 4 4 4 . . . . Machines | -11 -10 -10 -10 -9 -8 -8 -7 -7 -7 -6 -6 -6 -6 -5 -5 -4 -4 -4 -3 -3 ---------- Run | Yrd Mat Min Exi Min Mat Gar Fac Was Fac Fac Low Low Dat Pro Fac Fac Was Fac Res Qua Machines Disabled 25 | . . 1 . . . 2 . . 4 6 . . 1 . 6 4 . . . 1 Max in Single Turn 6 | . . 1 . . . 1 . . 1 6 . . 1 . 6 4 . . . 1 Garrison Access 4 | . . . . . . . . . . 1 . . . . 1 . . 1 . 1 Machines Repaired . | . . . . . . . . . . . . . . . . . . . . . Machines Dismantled . | . . . . . . . . . . . . . . . . . . . . . Machines Sabotaged . | . . . . . . . . . . . . . . . . . . . . . Overloaded Fab Kills . | . . . . . . . . . . . . . . . . . . . . . Hacking | -11 -10 -10 -10 -9 -8 -8 -7 -7 -7 -6 -6 -6 -6 -5 -5 -4 -4 -4 -3 -3 --------- Run | Yrd Mat Min Exi Min Mat Gar Fac Was Fac Fac Low Low Dat Pro Fac Fac Was Fac Res Qua Machines Accessed 101 | . 4 3 1 2 3 1 4 . 17 14 1 . 4 . 8 18 . 10 8 3 Terminals 57 | . 2 1 . 2 2 1 4 . 12 8 . . . . 5 10 . 5 4 1 Fabricators 19 | . . . . . . . . . 2 4 . . . . 2 4 . 3 4 . Repair Stations 6 | . . . . . . . . . 1 1 . . . . . 2 . 1 . 1 Recycling Units 4 | . 2 . . . . . . . 1 . . . . . . 1 . . . . Scanalyzers 2 | . . . . . . . . . 1 . . . . . . 1 . . . . Garrison Access 5 | . . . . . 1 . . . . 1 . . . . 1 . . 1 . 1 Total Hacks 285 | . 11 8 1 7 9 1 10 . 38 44 1 . 29 . 29 44 . 20 26 7 Successful 202 | . 4 5 1 1 4 . 2 . 20 27 1 . 29 . 25 38 . 19 21 5 Failed 82 | . 6 3 . 6 5 1 8 . 18 17 . . . . 4 6 . 1 5 2 Catastrophic 16 | . 1 . . 3 1 1 1 . 7 1 . . . . 1 . . . . . Database Lockouts 1 | . 1 . . . . . . . . . . . . . . . . . . . Manual 157 | . 10 5 1 7 8 . 8 . 17 31 . . . . 16 25 . 13 16 . Terminals 155 | . 8 6 . 7 8 1 10 . 21 25 . . . . 17 27 . 12 11 2 Fabricators 60 | . . . . . . . . . 5 16 . . . . 10 8 . 6 15 . Repair Stations 19 | . . . . . . . . . 6 2 . . . . . 6 . 1 . 4 Recycling Units 9 | . 3 . . . . . . . 4 . . . . . . 2 . . . . Scanalyzers 3 | . . . . . . . . . 2 . . . . . . 1 . . . . Garrison Access 6 | . . . . . 1 . . . . 1 . . . . 2 . . 1 . 1 Terminal Hacks 97 | . 2 5 1 . 2 . . . 5 5 1 . 29 . 11 19 . 10 6 1 Record 11 | . . . . . . . . . . . . . 11 . . . . . . . Part Schematic 18 | . . . . . . . . . 1 1 . . 10 . 3 1 . 1 1 . Robot Schematic 5 | . . . . . . . . . . . . . 5 . . . . . . . Robot Analysis 5 | . 1 2 . . 1 . . . . . . . . . . 1 . . . . Prototype ID Bank 4 | . 1 . . . . . . . . . . . 3 . . . . . . . Open Door 3 | . . 2 . . . . . . . . 1 . . . . . . . . . Level Access Points 3 | . . . . . . . . . . . . . . . 1 . . 1 1 . Branch Access Points 5 | . . . . . . . . . 1 1 . . . . 1 . . 1 1 . Machine Index 5 | . . . . . . . . . . 1 . . . . 1 1 . 1 1 . Terminal Index 3 | . . . . . 1 . . . 1 1 . . . . . . . . . . Alert Level 2 | . . . . . . . . . . . . . . . 1 . . 1 . . Unreport Threat 14 | . . . . . . . . . . . . . . . 2 6 . 3 2 1 Locate Traps 2 | . . . . . . . . . . . . . . . 1 1 . . . . Reprogram Traps 1 | . . . . . . . . . . 1 . . . . . . . . . . Recall Investigation 2 | . . . . . . . . . . . . . . . . 2 . . . . Recall Extermination 2 | . . . . . . . . . . . . . . . . 2 . . . . Recall Reinforcements 1 | . . . . . . . . . . . . . . . . 1 . . . . Hauler Manifests 4 | . . . . . . . . . 1 . . . . . 1 1 . 1 . . Zone Layout 6 | . . 1 . . . . . . 1 . . . . . . 3 . 1 . . Derelict Proto ID Bank 1 | . . . 1 . . . . . . . . . . . . . . . . . Fabricator Hacks 34 | . . . . . . . . . 2 7 . . . . 8 4 . 3 10 . Load Schematic 26 | . . . . . . . . . 2 5 . . . . 5 4 . 3 7 . Build 8 | . . . . . . . . . . 2 . . . . 3 . . . 3 . Repair Station Hacks 17 | . . . . . . . . . 6 2 . . . . . 5 . 1 . 3 Scan Component 11 | . . . . . . . . . 3 1 . . . . . 4 . 1 . 2 Repair 6 | . . . . . . . . . 3 1 . . . . . 1 . . . 1 Recycling Unit Hacks . | . . . . . . . . . . . . . . . . . . . . . Scanalyzer 3 | . . . . . . . . . 2 . . . . . . 1 . . . . Insert Component 2 | . . . . . . . . . 1 . . . . . . 1 . . . . Analyze 1 | . . . . . . . . . 1 . . . . . . . . . . . Garrison Access Hacks 5 | . . . . . 1 . . . . 1 . . . . 1 . . 1 . 1 Unlock Access 1 | . . . . . 1 . . . . . . . . . . . . . . . Seal Access 4 | . . . . . . . . . . 1 . . . . 1 . . 1 . 1 Unauthorized Hacks 46 | . 2 . . 1 1 . 2 . 5 12 . . . . 5 9 . 4 5 . Terminals 22 | . . . . 1 1 . 2 . 2 9 . . . . 3 3 . 1 . . Track 1 | . . . . . . . . . . 1 . . . . . . . . . . Assimilate 8 | . . . . . . . . . 1 3 . . . . 3 . . 1 . . Botnet 8 | . . . . 1 1 . 1 . 1 3 . . . . . 1 . . . . Disrupt 1 | . . . . . . . . . . . . . . . . 1 . . . . Operators 4 | . . . . . . . 1 . . 2 . . . . . 1 . . . . Fabricators 18 | . . . . . . . . . 1 3 . . . . 2 4 . 3 5 . Prioritize 3 | . . . . . . . . . . 1 . . . . 1 . . . 1 . Recompile 15 | . . . . . . . . . 1 2 . . . . 1 4 . 3 4 . Repair Stations . | . . . . . . . . . . . . . . . . . . . . . Recycling Units 6 | . 2 . . . . . . . 2 . . . . . . 2 . . . . Reject 2 | . . . . . . . . . 1 . . . . . . 1 . . . . Mask 2 | . . . . . . . . . 1 . . . . . . 1 . . . . Tunnel 2 | . 2 . . . . . . . . . . . . . . . . . . . Scanalyzers . | . . . . . . . . . . . . . . . . . . . . . Garrison Access . | . . . . . . . . . . . . . . . . . . . . . Data Cores Recovered 3 | . . . . . . . . . 1 1 . . . . 1 . . . . . Used 2 | . . . . . . . . . 1 1 . . . . . . . . . . Hacking Detections 74 | . 2 1 . 2 3 1 4 . 17 11 . . . . 6 14 . 5 6 2 Full Trace Events 11 | . 1 . . 2 1 . . . 2 2 . . . . 1 2 . . . . Feedback Events 1 | . . . . . . . . . . 1 . . . . . . . . . . Hackware Fried 1 | . . . . . . . . . . 1 . . . . . . . . . . Feedback Blocked . | . . . . . . . . . . . . . . . . . . . . . Robot Schematics Acquired 5 | . . . . . . . . . . . . . 5 . . . . . . . Robots Built . | . . . . . . . . . . . . . . . . . . . . . Authchips . | . . . . . . . . . . . . . . . . . . . . . Time . | . . . . . . . . . . . . . . . . . . . . . Total Robot Build Rating . | . . . . . . . . . . . . . . . . . . . . . Part Schematics Acquired 19 | . . . . . . . . . 2 1 . . 10 . 3 1 . 1 1 . Parts Built 8 | . . . . . . . . . . 2 . . . . 3 . . . 3 . Authchips 7 | . . . . . . . . . . 2 . . . . 2 . . . 3 . Time 321 | . . . . . . . . . . 106 . . . . 122 . . . 93 . Total Part Build Rating 50 | . . . . . . . . . . 12 . . . . 17 . . . 21 . Parts Repaired 6 | . . . . . . . . . 3 1 . . . . . 1 . . . 1 Time 347 | . . . . . . . . . 180 38 . . . . . 80 . . . 49 Parts Recycled . | . . . . . . . . . . . . . . . . . . . . . Recycled Matter . | . . . . . . . . . . . . . . . . . . . . . Retrieved Matter . | . . . . . . . . . . . . . . . . . . . . . Retrieved Components . | . . . . . . . . . . . . . . . . . . . . . Parts Scanalyzed 1 | . . . . . . . . . 1 . . . . . . . . . . . Part Schematics Acquired 1 | . . . . . . . . . 1 . . . . . . . . . . . Parts Damaged . | . . . . . . . . . . . . . . . . . . . . . Bothacking | -11 -10 -10 -10 -9 -8 -8 -7 -7 -7 -6 -6 -6 -6 -5 -5 -4 -4 -4 -3 -3 ------------ Run | Yrd Mat Min Exi Min Mat Gar Fac Was Fac Fac Low Low Dat Pro Fac Fac Was Fac Res Qua Used RIF Installer . | . . . . . . . . . . . . . . . . . . . . . Robots Hacked 4 | . . . . . . . . . 1 . . . . . . 3 . . . . Non-combat 4 | . . . . . . . . . 1 . . . . . . 3 . . . . Combat . | . . . . . . . . . . . . . . . . . . . . . Robot Hacks Applied 5 | . . . . . . . . . 1 . . . . . . 4 . . . . parse_system 1 | . . . . . . . . . . . . . . . . 1 . . . . find_chute 3 | . . . . . . . . . . . . . . . . 3 . . . . find_recycling 1 | . . . . . . . . . 1 . . . . . . . . . . . Relay Couplers Released . | . . . . . . . . . . . . . . . . . . . . . Fabnet Peak Effective % . | . . . . . . . . . . . . . . . . . . . . . Robots Rewired . | . . . . . . . . . . . . . . . . . . . . . Allies Hacked . | . . . . . . . . . . . . . . . . . . . . . Hacks Repelled . | . . . . . . . . . . . . . . . . . . . . . Allies | -11 -10 -10 -10 -9 -8 -8 -7 -7 -7 -6 -6 -6 -6 -5 -5 -4 -4 -4 -3 -3 -------- Run | Yrd Mat Min Exi Min Mat Gar Fac Was Fac Fac Low Low Dat Pro Fac Fac Was Fac Res Qua Total Allies 8 | . . . . . . . . . 1 3 . . . . 3 . . 1 . . Largest Group 2 | . . . . . . . . . 1 2 . . . . 2 . . 1 . . Highest-Rated Group 36 | . . . . . . . . . 26 20 . . . . 36 . . 10 . . Highest-Rated Ally 26 | . . . . . . . . . 26 10 . . . . 26 . . 10 . . Total Orders 4 | . . . . . . . . . 1 . . . . . 2 . . 1 . . STAY 3 | . . . . . . . . . 1 . . . . . 1 . . 1 . . FOLLOW 1 | . . . . . . . . . . . . . . . 1 . . . . . Ally Attacks 32 | . . . . . . . . . . 10 . . 22 . . . . . . . Total Damage 1717 | . . . . . . . . . . 556 . . 1161 . . . . . . . Kills 6 | . . . . . . . . . . 4 . . 2 . . . . . . . Allies Corrupted . | . . . . . . . . . . . . . . . . . . . . . Allies Melted . | . . . . . . . . . . . . . . . . . . . . . Turrets Deployed 3 | . . . . . . . . . . 1 . . 2 . . . . . . . Intel | -11 -10 -10 -10 -9 -8 -8 -7 -7 -7 -6 -6 -6 -6 -5 -5 -4 -4 -4 -3 -3 ------- Run | Yrd Mat Min Exi Min Mat Gar Fac Was Fac Fac Low Low Dat Pro Fac Fac Was Fac Res Qua Robot Analysis Total 5 | . 1 2 . . 1 . . . . . . . . . . 1 . . . . Derelict Logs Recovered 8 | . . 2 . 1 . . . . . . 1 1 . 3 . . . . . . Drone Launches . | . . . . . . . . . . . . . . . . . . . . . Drone Recoveries . | . . . . . . . . . . . . . . . . . . . . . Exploration | -11 -10 -10 -10 -9 -8 -8 -7 -7 -7 -6 -6 -6 -6 -5 -5 -4 -4 -4 -3 -3 ------------- Run | Yrd Mat Min Exi Min Mat Gar Fac Was Fac Fac Low Low Dat Pro Fac Fac Was Fac Res Qua Turns Passed 13689 | 107 798 2140 545 310 774 782 751 31 1634 982 80 181 202 419 913 1395 29 808 442 366 Spaces Moved 16562 | 60 434 721 275 130 321 402 622 111 2940 1883 297 564 156 715 1345 2734 94 1241 1049 468 Core 66 | 2 . . . . . . . . . . . . . . . . . . . 64 Treads 2426 | 58 392 721 275 130 321 402 127 . . . . . . . . . . . . . Legs . | . . . . . . . . . . . . . . . . . . . . . Wheels 201 | . 42 . . . . . 159 . . . . . . . . . . . . . Hover 337 | . . . . . . . . . . . . . . . . . . . . 337 Flight 13532 | . . . . . . . 336 111 2940 1883 297 564 156 715 1345 2734 94 1241 1049 67 Fastest Speed 17 | 50 110 160 160 240 160 160 26 26 26 23 23 23 23 23 23 23 17 25 17 32 Average Speed 49 | 156 155 160 192 240 160 168 94 26 26 25 23 23 23 24 23 23 24 32 25 56 Slowest Speed 240 | 160 160 160 240 240 160 240 240 26 99 26 23 23 23 26 93 27 30 101 34 200 Overloaded Moves 55 | . . . . . . . . . . . . . . . . . 7 13 35 . Propulsion Burnouts . | . . . . . . . . . . . . . . . . . . . . . Robots Hopped 92 | . . . . . . . 2 . 22 12 1 . 1 . 3 24 . 1 26 . Cave-ins Triggered . | . . . . . . . . . . . . . . . . . . . . . Exploration Rate (%) 51 | 4 52 96 60 32 31 57 20 85 63 36 54 84 81 76 28 50 79 23 29 38 Regions Visited 20 Branch Regions 8 Pre-discovered Areas 7 | . 2 1 . 1 . . . . . . . . 1 2 . . . . . . Known Exits Taken 10 | . . . . . 1 . . . 1 1 1 1 1 1 1 . . 1 1 . Unknown Exits Taken 5 | 1 1 1 1 1 . . . . . . . . . . . . . . . . Scrap Searched 6 | . . 1 . . . . . . . . . 3 . 2 . . . . . . Spaces Dug 157 | . . 1 . . . 24 . . 17 10 . 1 . 1 15 61 . 17 10 . Terrain Destroyed 285 | . . 1 . . . 73 1 . 18 28 . 3 . 1 72 61 . 17 10 . Melee 86 | . . 1 . . . 2 . . 17 10 . 1 . 1 12 18 . 17 7 . Projectile 11 | . . . . . . . 1 . 1 . . 2 . . 3 1 . . 3 . AOE 188 | . . . . . . 71 . . . 18 . . . . 57 42 . . . . Terrain Rammed . | . . . . . . . . . . . . . . . . . . . . . Walls Destroyed . | . . . . . . . . . . . . . . . . . . . . . Machines Disabled . | . . . . . . . . . . . . . . . . . . . . . Actions | -11 -10 -10 -10 -9 -8 -8 -7 -7 -7 -6 -6 -6 -6 -5 -5 -4 -4 -4 -3 -3 --------- Run | Yrd Mat Min Exi Min Mat Gar Fac Was Fac Fac Low Low Dat Pro Fac Fac Was Fac Res Qua Total 21269 | 68 491 1662 294 129 467 470 759 112 3662 2309 303 601 288 952 1910 3385 98 1598 1144 567 Wait 3612 | . 5 863 . . 38 29 12 2 547 315 6 19 109 230 512 523 4 283 49 66 Move 16367 | 59 433 720 274 129 321 401 618 110 2899 1858 294 563 153 714 1338 2687 93 1238 997 468 Hop 86 | . . . . . . . 2 . 18 12 1 . 1 . 3 23 . 1 25 . Pick Up 92 | 2 12 5 10 . 13 . 4 . 6 5 . . 1 2 5 8 . 5 11 3 Fast Attach 80 | 6 1 1 . . 6 . 12 . 16 6 . . . . 1 10 . 7 3 11 Attach 61 | . . 3 1 . 7 2 4 . 5 4 . 3 . 1 10 6 . 2 8 5 Detach 19 | . . 2 . . . 1 1 . 3 . . 3 . . 6 2 . . 1 . Swap 73 | . 3 6 3 . 3 3 8 . 16 7 . . . 3 9 7 . 1 4 . Drop 106 | . 2 6 6 . 14 1 22 . 15 5 . . 2 1 2 10 . 7 7 6 Fire 202 | 1 32 2 . . 58 28 18 . 12 9 . 10 . . 6 9 . 5 11 1 Melee 297 | . . 28 . . . 5 5 . 69 34 2 3 22 1 18 50 1 31 28 . Ram 8 | . . . . . . . 1 . . . . . . . . . . . . 7 Kick . | . . . . . . . . . . . . . . . . . . . . . Crush 10 | . 3 . . . 7 . . . . . . . . . . . . . . . Escape Stasis 176 | . . . . . . . 52 . 18 54 . . . . . 34 . 18 . . Rewire . | . . . . . . . . . . . . . . . . . . . . . Trap 80 | . . 26 . . . . . . 38 . . . . . . 16 . . . . Miscellaneous . | . . . . . . . . . . . . . . . . . . . . . Route ------- -11/Scrapyard -10/Materials (discovered 3 exits: [*Mat] / *Min / [*Sub]) -10/Mines (discovered 3 exits: [*Mat x2] / *Exi) -10/Exiles -9/Mines -8/Materials -8/Garrison (discovered 3 exits: *Fac x3) -7/Factory -7/Waste -7/Factory (discovered 3 exits: *Fac / *Low x2) -6/Factory (discovered 4 exits: *Low x2 / Ext x2) -6/Lower Caves -6/Lower Caves -6/Data Miner -5/Proximity Caves -5/Factory (discovered 6 exits: *Fac x4 / Upp x2) -4/Factory (discovered 2 exits: *Res / *Upp) -4/Waste -4/Factory (discovered 6 exits: *Res x4 / *Upp x2) -3/Research (discovered 6 exits: *Res x3 / Arm / *Qua x2) -3/Quarantine History --------- Turn | Location | Event 17 | -11/Scrapyard | Discovered new exit (range 16) 108 | -11/Scrapyard | Entered Materials 336 | -10/Materials | Build established: Mutant 453 | -10/Materials | Discovered new exit (range 10) 658 | -10/Materials | Discovered new exit (range 15) 751 | -10/Materials | Central database locked down 762 | -10/Materials | Discovered new exit (range 7) 906 | -10/Materials | Entered Mines 912 | -10/Mines | Met a Derelict who couldn't figure out how to use a Trap Extractor 1316 | -10/Mines | Assembled infested the area 1950 | -10/Mines | Learned Materials machine intel 2265 | -10/Mines | Discovered new exit (range 9) 2505 | -10/Mines | Met a Derelict shopkeep closing up shop 2707 | -10/Mines | Found a hidden stash of uninstalled traps 2908 | -10/Mines | Discovered new exit (range 10) 3038 | -10/Mines | Deemed a non-threat by the Exiles lab entrance 3038 | -10/Mines | Discovered new exit (range 6) 3046 | -10/Mines | Entered Exiles 3085 | -10/Exiles | Met 8R-AWN 3112 | -10/Exiles | Met EX-HEX 3162 | -10/Exiles | Met EX-BIN 3216 | -10/Exiles | Aligned with FarCom system 3218 | -10/Exiles | Given EX-Vault access code 3254 | -10/Exiles | Opened EX-Vault 3270 | -10/Exiles | Found Firepult 3276 | -10/Exiles | Found Gui. Plasma Cannon 3278 | -10/Exiles | Found Deploy-a-Sentry 3281 | -10/Exiles | Found Deploy-a-Sentry 3284 | -10/Exiles | Found Deploy-a-Sentry 3408 | -10/Exiles | Warned to stay clear of 0b10 Research branches 3475 | -10/Exiles | Met EX-DEC 3564 | -10/Exiles | Discovered new exit (range 14) 3591 | -10/Exiles | Stole three prototypes: Gui. Plasma Cannon, Firepult, Deploy-a-Sentry 3591 | -10/Exiles | Entered Mines 3592 | -9/Mines | Learned location of Storage (-9) 3599 | -9/Mines | Discovered new exit (range 8) 3709 | -9/Mines | Learned Materials interactive machine intel 3901 | -9/Mines | Entered Materials 3901 | -8/Materials | Evolved 4 slots: Propulsion x2, Utility x2 3902 | -8/Materials | Loaded intel: 49 machine locations 3903 | -8/Materials | Loaded intel: 18 interactive machine locations 4412 | -8/Materials | Build established: Scavenger-Skirmisher 4675 | -8/Materials | Identified exit to Garrison 4675 | -8/Materials | Entered Garrison 4768 | -8/Garrison | Triggered checkpoint 4895 | -8/Garrison | Discovered new exit (range 14) 5020 | -8/Garrison | Triggered checkpoint 5095 | -8/Garrison | Discovered new exit (range 11) 5175 | -8/Garrison | Triggered checkpoint 5233 | -8/Garrison | Build established: Scavenger-Assassin 5428 | -8/Garrison | Discovered new exit (range 13) 5457 | -8/Garrison | Entered Factory 5457 | -7/Factory | Evolved 2 slots: Utility x2 5459 | -7/Factory | FarCom data flow suspended 5785 | -7/Factory | Discovered new exit (range 15) 5917 | -7/Factory | Identified exit to Factory 6208 | -7/Factory | Sucked down chute 6208 | -7/Factory | Entered Waste 6213 | -7/Waste | Spotted C-40 Crusher 6213 | -7/Waste | Spotted C-40 Crusher 6223 | -7/Waste | EMP discharged 6228 | -7/Waste | Spotted C-40 Crusher 6230 | -7/Waste | Spotted C-40 Crusher 6231 | -7/Waste | Spotted C-40 Crusher 6232 | -7/Waste | Spotted C-40 Crusher 6237 | -7/Waste | Discovered new exit (range 10) 6239 | -7/Waste | Identified exit to Factory 6239 | -7/Waste | Entered Factory 6624 | -7/Factory | Build established: Scavenger-Scout 6745 | -7/Factory | Garrison activated, responded to threat 6964 | -7/Factory | Identified exit to Lower Caves 7529 | -7/Factory | Discovered exit to Factory (range 13) 7712 | -7/Factory | Repaired Imp. VTOL Module 7774 | -7/Factory | Repaired Imp. VTOL Module 7808 | -7/Factory | Cargo convoy interrupted 7834 | -7/Factory | Repaired Imp. VTOL Module 7873 | -7/Factory | Entered another Factory area 7873 | -6/Factory | Evolved 2 slots: Propulsion x1, Utility x1 7935 | -6/Factory | Repaired Lgt. Deuterium Engine 8017 | -6/Factory | Identified exit to Lower Caves 8017 | -6/Factory | Identified exit to Extension 8062 | -6/Factory | Hacking Suite fried by hacking feedback 8489 | -6/Factory | Fabricated Adv. Hacking Suite? 8552 | -6/Factory | Fabricated Adv. Hacking Suite? 8720 | -6/Factory | DAS Turret deployed 8795 | -6/Factory | Build established: Hacker-Scout 8855 | -6/Factory | Entered Lower Caves 8908 | -6/Lower Caves | Learned Factory security intel 8921 | -6/Lower Caves | Attracted the attention of an 0b10 outpost 8922 | -6/Lower Caves | Discovered new exit (range 15) 8934 | -6/Lower Caves | Identified exit to Lower Caves 8935 | -6/Lower Caves | Entered another Lower Caves area 8982 | -6/Lower Caves | Encountered a Warlord checkpoint 8989 | -6/Lower Caves | Learned Factory stockpile data 9113 | -6/Lower Caves | Discovered new exit (range 5) 9114 | -6/Lower Caves | Identified exit to Data Miner 9116 | -6/Lower Caves | Entered Data Miner 9116 | -6/Data Miner | Discovered new exit (range 6) 9121 | -6/Data Miner | Met Data Miner 9129 | -6/Data Miner | DAS Turret deployed 9130 | -6/Data Miner | DAS Turret deployed 9133 | -6/Data Miner | Learned location of Section 7 (-2) 9133 | -6/Data Miner | Acquired the access code to Warlord's prototype stash 9135 | -6/Data Miner | Received God Mode back door access code from Data Miner 9140 | -6/Data Miner | Destroyed Data Miner 9143 | -6/Data Miner | Found Prototype Hackware 9144 | -6/Data Miner | Data Conduit disabled 9318 | -6/Data Miner | Identified exit to Proximity Caves 9318 | -6/Data Miner | Entered Proximity Caves 9732 | -5/Proximity Caves | Discovered new exit (range 9) 9734 | -5/Proximity Caves | Identified exit to Factory 9736 | -5/Proximity Caves | Learned Factory garrison access intel 9737 | -5/Proximity Caves | Entered Factory 9737 | -5/Factory | Evolved 2 slots: Utility x2 9740 | -5/Factory | Loaded intel: 4 garrison access locations 9919 | -5/Factory | Spotted B-75 Beast 9957 | -5/Factory | Identified System Mapper 10127 | -5/Factory | Identified exit to Factory 10127 | -5/Factory | Identified exit to Upper Caves 10252 | -5/Factory | Build established: Wizard-Sprinter 10255 | -5/Factory | Fabricated Cld. Nuclear Pulse Thruster? 10303 | -5/Factory | Fabricated Cld. Nuclear Pulse Thruster? 10346 | -5/Factory | Fabricated Exp. Utility Shielding? 10650 | -5/Factory | Entered another Factory area 10650 | -4/Factory | Evolved 2 slots: Utility x2 10686 | -4/Factory | Discovered new exit (range 6) 10687 | -4/Factory | Identified exit to Upper Caves 10798 | -4/Factory | Repaired Exp. Utility Shielding? 11015 | -4/Factory | Found Prototype Launcher 11015 | -4/Factory | Identified Com. Tesla Bomb Launcher 11018 | -4/Factory | Found Com. Tesla Bomb Launcher 11192 | -4/Factory | Build established: Wizard-Scout 11237 | -4/Factory | Discovered new exit (range 7) 11239 | -4/Factory | Identified exit to Research 11251 | -4/Factory | Spotted B-86 Titan 11419 | -4/Factory | Cargo convoy interrupted 12045 | -4/Factory | Manually triggered Chute Trap 12045 | -4/Factory | Sucked down chute 12045 | -4/Factory | Entered Waste 12058 | -4/Waste | Spotted C-40 Crusher 12058 | -4/Waste | Spotted C-40 Crusher 12060 | -4/Waste | EMP discharged 12060 | -4/Waste | System corruption reached 10% 12060 | -4/Waste | Spotted C-40 Crusher 12061 | -4/Waste | Discovered new exit (range 16) 12061 | -4/Waste | Spotted C-40 Crusher 12065 | -4/Waste | Identified exit to Factory 12067 | -4/Waste | Crushed by Compactor (1 part destroyed, 1 dropped) 12074 | -4/Waste | Entered Factory 12264 | -4/Factory | Discovered exit to Upper Caves (range 16) 12882 | -4/Factory | Entered Research 12882 | -3/Research | Evolved 2 slots: Propulsion x2 12996 | -3/Research | Fabricated Diametric Drive? 13068 | -3/Research | Fabricated Diametric Drive? 13111 | -3/Research | Fabricated Exp. Melee Analysis Suite? 13143 | -3/Research | Build established: Wizard-Sprinter 13256 | -3/Research | Identified exit to Armory 13256 | -3/Research | Identified exit to Quarantine 13256 | -3/Research | Identified exit to Research 13263 | -3/Research | Found Adv. Powered Armor 13265 | -3/Research | Found Adv. Powered Armor 13310 | -3/Research | Lost 6 parts (1p4n1u) 13324 | -3/Research | Entered Quarantine 13386 | -3/Quarantine | Repaired Cld. Field Propulsion Drive 13420 | -3/Quarantine | Spotted Alpha 7 13562 | -3/Quarantine | Found Alien Slashing Weapon 13617 | -3/Quarantine | Found Alien Artifact 13626 | -3/Quarantine | Core integrity fell below 50% 13650 | -3/Quarantine | Build established: Hacker-Mutant 13651 | -3/Quarantine | Core integrity fell below 20% 13675 | -3/Quarantine | Lost 12 parts (1p4n7u) 13690 | -3/Quarantine | Destroyed by P-80 Master with Gamma Rifle Last Messages --------------- 13630_ U-05 Engineer builds a Door. 13631_ S-43 Plague suffers critical hit (Destroy). 13631_ S-43 Plague destroyed. 13632_ Med. Storage Unit destroyed. 13632_ Authchip [Processor] destroyed. 13633_ M-28 Smith repairs Xenon Bombardment Thruster. 13641_ Scanalyzer disabled. 13644_ Authchip [Weapon] destroyed. 13645_ Slammed into P-80 Master. 13648_ M-28 Smith repairs Xenon Bombardment Thruster. 13650_ Acquired Authchip [Weapon]. 13653_ P-80 Master resets S-43 Plague, system corruption cleaned. 13659_ Slammed into U-05 Engineer. 13662_ Penetrated by Slug. 13662_ Slug penetrates Door. 13689_ Scanalyzer disabled. Map ----- +----------------------------------------------------+ | | | | | | | | | | | | | | | | | | | | | | | | | | | | | | | ###################??????????????????????????????? | | #??????????????????????????????? | | "" #??????????????????????????????? | | "" #??????????????????????????????? | | """ """ """ S" #?########?????????????????????? | | """ """%""" "" #?# s #?????????????????????? | | """ """%""" """ #?#! s7 #?????????????????????? | | """ #?# pcp#?????????????????????? | | #?# " p#?????????????????????? | | #########+########### S" s#?????????????????????? | | # + " @ #?????????????????????? | | # ##### ###########?????????????????????? | | """ # #???# #???????????????????????????????? | | !"" + !!#???# #???????????????????????????????? | | "" # !#???# #???????????????????????????????? | | # [#???# #???????????????????????????????? | | ###+### %##### #???????????????????????????????? | | ## #???????????????????????????????? | | ## #???????????????????????????????? | | ## #???????????????????????????????? | | ## #???????????????????????????????? | | ######+##### #???????????????????????????????? | | #?# #??#+#???????????????????????????????? | | #?# #??? ????????????????????????????????? | | #?#"" ""#??? ????????????????????????????????? | | #?#"""""#??? ????????????????????????????????? | | #?#"""""#??? ????????????????????????????????? | | #?#######??? ????????????????????????????????? | | #####??????????? ????????????????????????????????? | | #???????????? ????????????????????????????????? | | #?????????????????????????????????????????????? | | #?????????????????????????????????????????????? | | ####?????????????????????????????????????????????? | | #????????????????????????????????????????????????? | | #????????????????????????????????????????????????? | +----------------------------------------------------+ Best States ------------- Heat Dissipation 46 Energy Generation 25 Energy Capacity 310 Matter Stores 300 Matter Capacity 300 Sight Range 16 Robot Scan Range 16 Terrain Scan Density 10 Armor Coverage 800 Utility Shielding 90 Evasion (%) 65 Targeting Accuracy 5 Melee Accuracy 12 Recoil Reduction 4 Offensive Hacking 92 Defensive Hacking 10 Authchip Count 9 Trap Extractor Capacity 6 Item Schematics ----------------- Seismic Detector | -7/Factory | Scanalyzed Flight Unit | -7/Factory | Hacked Adv. Hacking Suite | -6/Factory | Hacked Combat Drone Bay | -6/Data Miner | Free Lgt. Regenerative Plating | -6/Data Miner | Free Enh. Flexi-carbon Leg | -6/Data Miner | Free Prc. Matter Filter | -6/Data Miner | Free Thunder Hammer | -6/Data Miner | Free Centrium Wheel | -6/Data Miner | Free Adv. Thermal Generator | -6/Data Miner | Free Dispersion Rifle | -6/Data Miner | Free Adv. Datajack | -6/Data Miner | Free Hvy. Armored Exoskeleton | -6/Data Miner | Free Exp. Utility Shielding | -5/Factory | Hacked Cld. Nuclear Pulse Thruster | -5/Factory | Hacked Nanoactuators | -5/Factory | Hacked Exp. Melee Analysis Suite | -4/Factory | Hacked Diametric Drive | -4/Factory | Hacked Nanosword | -3/Research | Hacked Robot Schematics ------------------ B-48 Gladiator | -6/Data Miner | Free G-50 Soldier | -6/Data Miner | Free R-10 Processor | -6/Data Miner | Free B-60 Warrior | -6/Data Miner | Free A-27 Freighter | -6/Data Miner | Free Fabricated ------------ Adv. Hacking Suite | x1 | -6/Factory | Authchip Adv. Hacking Suite | x1 | -6/Factory | Authchip Cld. Nuclear Pulse Thruster | x1 | -5/Factory | Authchip Cld. Nuclear Pulse Thruster | x1 | -5/Factory | Authchip Exp. Utility Shielding | x1 | -5/Factory Diametric Drive | x1 | -3/Research | Authchip Diametric Drive | x1 | -3/Research | Authchip Exp. Melee Analysis Suite | x1 | -3/Research | Authchip Alien Tech Used ----------------- None Achievements -------------- None Challenges ------------ None Game ------ Seed GodSurgeEdition Manual? 0 Play Time 02:56:28 Cumulative 789.3 hours Start 2024.05.13 @ 21:35:58 End 2024.05.14 @ 00:43:47 Sessions 1 Manual Loads 0 Difficulty Rogue Special Mode None Game No. 505 Rogue 498 Adventurer 0 Explorer 7 Win Type - Total 55 Types 20/5/19/2/0/1/6/1/1 Lore% 89 Gallery% 96 Achievement% 84 Wizard Run 0 Options --------- Layout 2 ASCII 0 Keyboard 0 Movement Numpad Keybinds 0 Fullscreen 1 Font 24/Tamsyn Map View 50x44 Zoom Use 0% Tactical HUD 1 Map Filters NONE Filters NONE Steam 1 RUN: cbcab9da-e9ef-4d10-a484-9c160bdd6c40